bitfinex/quotes_SOLUSD_20240620
["timestamp","ask_amount","ask_price","bid_price","bid_amount"]
[1718902099941,65.0,134.0,133.85,21.9456]
[1718902100140,65.0,134.0,133.86,20.0]
[1718902100335,65.0,134.0,133.9,7.4679]
[1718902100554,65.0,134.0,133.86,20.0]
[1718902100772,65.0,134.0,133.9,7.4678]
[1718902101082,65.0,134.0,133.91,7.4676]
[1718902101872,65.0,134.0,133.9,7.4682]
[1718902102374,20.3825,133.99,133.86,20.0]
[1718902102578,5.2292,133.96,133.85,1.30079842]
[1718902102789,5.2292,133.96,133.81,7.4727]
[1718902102790,5.2292,133.94,133.81,7.4727]
[1718902103074,32.82,133.93,133.78,1.30155921]
[1718902103255,65.0,133.92,133.81,7.4729]
[1718902103449,65.0,133.92,133.73,260.122043]
[1718902103450,43.84,133.91,133.76,7.4756]
[1718902103654,43.84,133.91,133.73,0.822043]
[1718902103854,5.2292,133.88,133.75,7.4762]
[1718902104055,65.0,133.87,133.76,27.4759]
[1718902104273,65.0,133.87,133.77,7.4753]
[1718902104589,65.0,133.87,133.74,18.6928]
[1718902104747,5.2292,133.88,133.76,18.6901]
[1718902105280,5.2292,133.88,133.78,7.4749]
[1718902105664,5.2292,133.88,133.79,7.4743]
[1718902107059,5.2292,133.88,133.73,19.515443]
[1718902107263,5.2292,133.88,133.78,7.4746]
[1718902107473,5.2292,133.88,133.73,0.822043]
[1718902107653,5.2292,133.88,133.73,20.822043]
[1718902107855,5.2292,133.88,133.79,7.474]
[1718902108074,5.2292,133.88,133.77,18.6874]
[1718902108289,5.2292,133.88,133.82,7.4725]
[1718902108664,5.2292,133.88,133.81,7.4731]
[1718902109382,5.2292,133.88,133.82,20.0]
[1718902109557,5.2292,133.88,133.8,18.6833]
[1718902109763,5.2292,133.88,133.83,7.4718]
[1718902109957,5.2292,133.88,133.8,18.6833]
[1718902110168,5.2292,133.88,133.81,20.0]
[1718902110368,5.2292,133.88,133.84,7.4716]
[1718902110559,16.1608,133.91,133.73,0.822043]
[1718902110560,21.39,133.91,133.73,0.822043]
[1718902110873,20.0,133.9,133.78,7.4747]
[1718902111053,20.0,133.9,133.76,7.4756]
[1718902111258,20.0,133.9,133.73,19.515643]
[1718902111259,5.2292,133.89,133.74,7.4771]
[1718902111460,15.4429,133.87,133.75,7.4762]
[1718902111717,5.2292,133.85,133.73,0.822043]
[1718902111888,45.0,133.84,133.74,7.4768]
[1718902112585,5.2292,133.85,133.76,7.4758]
[1718902113163,45.0,133.84,133.75,7.4765]
[1718902113670,5.2292,133.85,133.73,0.822043]
[1718902113671,5.2292,133.85,133.77,7.4751]
[1718902114868,5.2292,133.85,133.73,0.822043]
[1718902115197,5.2292,133.85,133.79,7.474]
[1718902115366,5.2292,133.85,133.8,7.4737]
[1718902115690,5.2292,133.85,133.79,7.4741]
[1718902116591,5.2292,133.85,133.8,7.4737]
[1718902116788,5.2292,133.85,133.79,7.4741]
[1718902116970,5.2292,133.85,133.74,0.51]
[1718902117177,5.2292,133.85,133.77,7.4753]
[1718902117383,5.2292,133.85,133.77,7.4752]
[1718902117696,5.2292,133.85,133.78,7.4747]
[1718902118369,5.2292,133.85,133.76,18.6888]
[1718902118568,5.2292,133.85,133.79,7.474]
[1718902119172,5.2292,133.85,133.76,18.6888]
[1718902119789,5.2292,133.85,133.79,7.4741]
[1718902119971,5.2292,133.85,133.78,7.4746]
[1718902120274,5.2292,133.85,133.77,18.6877]
[1718902120475,5.2292,133.85,133.8,7.4735]
[1718902120797,5.2292,133.85,133.81,7.4731]
[1718902122200,5.2292,133.85,133.8,7.4735]
[1718902122575,5.2292,133.85,133.81,7.4731]
[1718902123184,5.2292,133.85,133.79,7.4739]
[1718902123694,5.2292,133.85,133.78,7.4747]
[1718902123898,5.2292,133.85,133.79,7.4741]
[1718902124067,5.2292,133.85,133.78,7.4749]
[1718902125072,5.2292,133.85,133.76,18.6891]
[1718902125297,5.2292,133.85,133.79,7.4741]
[1718902125485,5.2292,133.85,133.8,7.4737]
[1718902126084,5.2292,133.85,133.79,7.4741]
[1718902126302,5.2292,133.85,133.8,7.4738]
[1718902126878,5.2292,133.85,133.79,7.4741]
[1718902127375,5.2292,133.85,133.8,7.4737]
[1718902127882,5.2292,133.85,133.79,7.4741]
[1718902128290,5.2292,133.85,133.77,20.0]
[1718902128605,5.2292,133.85,133.78,7.4746]
[1718902128976,5.2292,133.85,133.79,7.4743]
[1718902129192,5.2292,133.85,133.76,20.0]
[1718902129583,5.2292,133.85,133.78,7.4747]
[1718902130094,5.2292,133.85,133.8,7.4733]
[1718902130294,5.2292,133.85,133.79,7.4741]
[1718902130710,5.2292,133.85,133.8,7.4737]
[1718902131215,5.2292,133.85,133.79,7.4741]
[1718902131409,5.2292,133.85,133.77,7.475]
[1718902131736,5.2292,133.85,133.76,20.0]
[1718902131917,5.2292,133.85,133.78,7.4746]
[1718902132119,5.2292,133.85,133.8,7.4735]
[1718902132297,5.2292,133.85,133.79,7.4741]
[1718902132988,5.2292,133.85,133.8,7.4738]
[1718902133487,5.2292,133.85,133.81,7.4732]
[1718902133883,5.2292,133.85,133.75,20.17]
[1718902134277,15.883,133.91,133.86,7.4704]
[1718902134510,15.883,133.91,133.78,38.996291]
[1718902134819,5.2292,133.93,133.86,18.6751]
[1718902134986,5.2292,133.93,133.88,7.4692]
[1718902135400,5.2292,133.93,133.89,7.4685]
[1718902135604,5.2292,133.93,133.9,7.4682]
[1718902135801,16.2206,133.94,133.9,7.4682]
[1718902136187,16.2206,133.94,133.86,18.6751]
[1718902136409,16.2206,133.94,133.9,7.4679]
[1718902136711,16.2206,133.94,133.91,7.4676]
[1718902136915,16.2206,133.94,133.9,7.468]
[1718902138035,16.2206,133.94,133.88,7.4693]
[1718902138208,16.2206,133.94,133.89,7.4687]
[1718902139720,16.2206,133.94,133.87,20.0]
[1718902139928,16.2206,133.94,133.84,7.4714]
[1718902140224,16.2206,133.94,133.85,27.4708]
[1718902140428,16.2206,133.94,133.85,20.0]
[1718902140624,16.2206,133.94,133.86,7.4704]
[1718902140970,16.2206,133.94,133.84,7.4713]
[1718902141231,16.2206,133.94,133.83,6.9719]
[1718902141232,5.2292,133.93,133.83,6.9719]
[1718902141525,5.2292,133.93,133.85,7.4707]
[1718902141752,5.2292,133.93,133.84,20.0]
[1718902142034,45.0,133.92,133.79,27.6415813]
[1718902142209,45.0,133.92,133.8,20.0]
[1718902142210,16.4152,133.91,133.8,20.0]
[1718902142705,16.4152,133.91,133.82,7.4724]
[1718902142905,16.4152,133.91,133.8,27.4735]
[1718902143115,16.4152,133.91,133.81,7.4732]
[1718902143937,16.4152,133.91,133.8,20.0]
[1718902144133,16.4152,133.91,133.83,7.4721]
[1718902144511,16.4152,133.91,133.82,7.4726]
[1718902144916,16.4152,133.91,133.84,7.4711]
[1718902145107,16.4152,133.91,133.83,7.4719]
[1718902145527,16.4152,133.91,133.81,7.4731]
[1718902146418,16.4785,133.89,133.74,32.82]
[1718902146618,16.4785,133.89,133.78,7.4746]
[1718902146619,70.2292,133.88,133.78,7.4746]
[1718902147831,70.2292,133.88,133.79,7.4743]
[1718902148038,70.2292,133.88,133.8,7.4736]
[1718902148533,70.2292,133.88,133.79,7.4741]
[1718902149271,70.2292,133.88,133.76,18.689]
[1718902149538,70.2292,133.88,133.78,7.4748]
[1718902149735,70.2292,133.88,133.79,7.4743]
[1718902151247,70.2292,133.88,133.78,7.4746]
[1718902151436,70.2292,133.88,133.77,7.4752]
[1718902152233,50.2292,133.88,133.73,6.73348335]
[1718902152445,5.2292,133.88,133.74,20.51]
[1718902152611,5.2292,133.88,133.76,18.6889]
[1718902152810,5.2292,133.88,133.77,20.34]
[1718902153227,5.2292,133.88,133.8,7.4735]
[1718902154109,5.2292,133.88,133.79,7.4742]
[1718902154710,5.2292,133.88,133.8,7.4738]
[1718902155326,5.2292,133.88,133.79,7.4741]
[1718902155833,61.532,133.87,133.74,18.6928]
[1718902156067,21.7612,133.86,133.74,7.4769]
[1718902156424,45.0,133.85,133.74,7.4769]
[1718902156629,45.0,133.85,133.75,7.4765]
[1718902156824,45.0,133.85,133.76,7.476]
[1718902157028,45.0,133.85,133.77,7.4752]
[1718902157227,21.7612,133.86,133.73,0.822043]
[1718902157439,21.7612,133.86,133.77,7.4752]
[1718902157738,21.7612,133.86,133.76,7.4759]
[1718902157937,45.0,133.85,133.75,7.4762]
[1718902159246,15.7253,133.84,133.74,7.4769]
[1718902159449,45.0,133.83,133.74,7.4769]
[1718902159649,20.9545,133.84,133.75,7.4763]
[1718902160142,20.9545,133.84,133.77,7.4752]
[1718902160647,20.9545,133.84,133.76,7.4757]
[1718902160943,20.9545,133.84,133.75,7.4764]
[1718902161148,20.9545,133.84,133.76,7.4757]
[1718902161334,20.9545,133.84,133.75,7.4764]
[1718902161536,45.0,133.83,133.74,7.4769]
[1718902161735,45.0,133.83,133.75,7.4765]
[1718902163529,45.0,133.83,133.73,0.822043]
[1718902163530,20.9545,133.84,133.73,0.822043]
[1718902163732,20.9545,133.84,133.77,7.475]
[1718902163924,20.9545,133.84,133.79,7.4739]
[1718902164136,20.9545,133.84,133.74,0.34]
[1718902164438,5.86328106,133.91,133.74,0.34]
[1718902164439,21.7225,133.87,133.82,7.4723]
[1718902164635,21.7225,133.87,133.82,7.4722]
[1718902164939,21.7225,133.87,133.85,7.4709]
[1718902165250,21.7225,133.87,133.83,7.4719]
[1718902165425,21.7225,133.87,133.82,7.4724]
[1718902166140,21.7225,133.87,133.83,7.472]
[1718902167039,21.7225,133.87,133.8,18.6842]
[1718902167227,21.7225,133.87,133.81,39.1919]
[1718902167431,21.7225,133.87,133.81,20.17]
[1718902167955,21.7225,133.87,133.82,7.4724]
[1718902169165,21.7225,133.87,133.82,7.4723]
[1718902169349,21.7225,133.87,133.82,7.4725]
[1718902171446,21.7225,133.87,133.8,38.6835]
[1718902171674,21.7225,133.87,133.83,7.472]
[1718902172474,21.7225,133.87,133.82,7.4724]
[1718902173170,21.7225,133.87,133.85,7.4709]
[1718902173370,16.4933,133.87,133.85,7.4709]
[1718902173674,16.4933,133.87,133.84,7.4714]
[1718902174047,16.4933,133.87,133.8,20.0]
[1718902174269,16.4933,133.87,133.81,0.34]
[1718902174447,16.4933,133.87,133.8,20.34]
[1718902174752,16.4933,133.87,133.82,7.4724]
[1718902175863,16.4933,133.87,133.8,20.34]
[1718902176050,16.4933,133.87,133.8,0.34]
[1718902176378,16.4933,133.87,133.82,7.4724]
[1718902177074,16.4933,133.87,133.81,7.473]
[1718902177270,16.4933,133.87,133.79,7.4743]
[1718902178249,16.4933,133.87,133.8,7.4737]
[1718902178561,16.4933,133.87,133.81,7.473]
[1718902178768,16.4933,133.87,133.8,7.4736]
[1718902179308,16.4933,133.87,133.77,20.0]
[1718902179466,16.4933,133.87,133.76,38.8591]
[1718902179669,16.4933,133.87,133.77,0.17]
[1718902179865,16.4933,133.87,133.76,38.8591]
[1718902180077,16.4933,133.87,133.77,0.17]
[1718902180285,16.4933,133.87,133.77,0.34]
[1718902180578,16.4933,133.87,133.79,7.4741]
[1718902180951,16.4933,133.87,133.77,0.34]
[1718902181654,16.4933,133.87,133.8,7.4737]
[1718902181968,16.4933,133.87,133.81,7.4732]
[1718902183384,16.4933,133.87,133.8,18.6843]
[1718902183575,16.4933,133.87,133.81,20.34]
[1718902183753,16.4933,133.87,133.84,7.4715]
[1718902183953,16.4933,133.87,133.85,7.4707]
[1718902184159,16.4933,133.87,133.84,7.4714]
[1718902184577,5.2292,133.9,133.82,18.6814]
[1718902184780,5.2292,133.9,133.85,7.4708]
[1718902185981,16.2295,133.91,133.87,7.4696]
[1718902186473,16.2295,133.91,133.86,7.4702]
[1718902186672,16.2295,133.91,133.84,18.8484]
[1718902186673,16.2295,133.91,133.85,7.4708]
[1718902187066,16.2295,133.91,133.86,7.4704]
[1718902187377,16.2295,133.91,133.87,7.4697]
[1718902187971,16.2295,133.91,133.86,7.4702]
[1718902188273,16.2295,133.91,133.84,19.0185]
[1718902188274,16.2295,133.91,133.85,7.4706]
[1718902188694,16.2295,133.91,133.82,28.2]
[1718902188975,16.2295,133.91,133.85,7.4707]
[1718902189282,16.2295,133.91,133.84,7.4715]
[1718902189778,16.2295,133.91,133.85,7.471]
[1718902190093,16.2295,133.91,133.84,7.4713]
[1718902191272,16.2295,133.91,133.83,27.4719]
[1718902191478,16.2295,133.91,133.82,7.4726]
[1718902192293,5.2292,133.9,133.82,7.4726]
[1718902194384,5.2292,133.9,133.83,7.4721]
[1718902195499,5.2292,133.9,133.8,28.2]
[1718902195661,5.2292,133.9,133.85,7.4707]
[1718902196484,5.2292,133.9,133.84,7.4713]
[1718902196683,5.2292,133.9,133.84,18.6779]
[1718902196886,16.2295,133.91,133.87,7.4695]
[1718902197170,16.2295,133.91,133.86,7.4702]
[1718902199298,16.2295,133.91,133.87,7.4698]
[1718902199483,16.2295,133.91,133.85,20.0]
[1718902199692,16.2295,133.91,133.84,20.0]
[1718902199894,16.2295,133.91,133.86,7.4701]
[1718902202406,16.2295,133.91,133.84,20.0]
[1718902202697,5.2292,133.9,133.82,27.4726]
[1718902202989,5.2292,133.9,133.84,7.4715]
[1718902203290,5.2292,133.9,133.85,7.4707]
[1718902203489,5.2292,133.9,133.82,20.0]
[1718902203702,5.2292,133.9,133.82,7.4724]
[1718902203908,5.2292,133.9,133.83,20.0]
[1718902204769,45.0,133.89,133.83,20.0]
[1718902204986,45.0,133.89,133.82,7.4723]
[1718902205277,5.2292,133.9,133.83,20.0]
[1718902206173,5.2292,133.9,133.77,1.30119056]
[1718902206174,16.1891,133.87,133.77,1.30119056]
[1718902206377,16.1891,133.87,133.72,6.5625]
[1718902206378,5.2292,133.85,133.75,7.4761]
[1718902206608,16.1891,133.84,133.73,0.822043]
[1718902206808,16.1891,133.84,133.74,28.2]
[1718902207096,16.1891,133.84,133.77,28.2]
[1718902207471,3.90519207,133.96,133.77,28.2]
[1718902207472,16.1891,133.88,133.77,28.2]
[1718902207780,16.1891,133.88,133.83,7.4717]
[1718902208802,16.1891,133.88,133.8,28.2]
[1718902208978,16.1891,133.88,133.82,7.4724]
[1718902209178,16.1891,133.88,133.82,7.4727]
[1718902209482,16.1891,133.88,133.76,18.6891]
[1718902209684,44.3891,133.88,133.77,38.6878]
[1718902209895,44.3891,133.88,133.77,18.6878]
[1718902209896,16.1891,133.88,133.77,18.6878]
[1718902210095,16.1891,133.88,133.8,7.4735]
[1718902210579,16.1891,133.88,133.79,7.4742]
[1718902210909,45.0,133.87,133.79,7.4742]
[1718902211298,45.0,133.87,133.8,7.4737]
[1718902211796,45.0,133.87,133.79,7.4741]
[1718902212099,45.0,133.87,133.78,7.4747]
[1718902212287,45.0,133.87,133.79,27.4741]
[1718902212488,45.0,133.87,133.8,7.4737]
[1718902212806,44.3891,133.88,133.86,7.4702]
[1718902212807,16.1891,133.88,133.86,7.4702]
[1718902212996,32.10519207,133.96,133.87,7.4698]
[1718902212997,21.1475,133.95,133.87,7.4698]
[1718902213206,21.1475,133.95,133.86,7.4702]
[1718902213908,21.1475,133.95,133.82,28.2]
[1718902214112,21.1475,133.95,133.81,60.3324]
[1718902214113,15.0721,133.91,133.81,20.0]
[1718902214284,45.0,133.9,133.8,7.4737]
[1718902214610,45.0,133.9,133.78,18.6867]
[1718902214785,15.0721,133.88,133.79,38.6847]
[1718902214982,15.0721,133.88,133.83,7.4718]
[1718902215186,15.0721,133.88,133.82,7.4724]
[1718902215603,15.0721,133.88,133.81,7.473]
[1718902216004,15.0721,133.88,133.83,7.4717]
[1718902216186,15.0721,133.88,133.79,20.0]
[1718902216514,28.2,133.95,133.8,0.51]
[1718902216698,21.4964,133.94,133.8,20.51]
[1718902217099,21.4964,133.94,133.81,21.6242]
[1718902217294,21.4964,133.94,133.82,20.51]
[1718902217493,21.4964,133.94,133.87,7.4696]
[1718902218609,21.4964,133.94,133.91,7.4674]
[1718902218810,7.81136533,134.01,133.93,7.4663]
[1718902218811,5.2292,133.97,133.93,7.4663]
[1718902219208,5.2292,133.97,133.94,7.4659]
[1718902219426,15.2487,133.99,133.95,7.4654]
[1718902219641,5.2292,134.01,133.97,7.4642]
[1718902219811,5.2292,134.01,133.93,18.6663]
[1718902219812,5.2292,134.01,133.98,7.4637]
[1718902220202,15.2396,134.03,133.98,7.4637]
[1718902220509,15.2396,134.03,133.94,18.8339]
[1718902220716,15.2396,134.03,133.97,7.464]
[1718902221012,15.2396,134.03,133.95,20.34]
[1718902221013,5.2292,134.05,133.98,20.17]
[1718902221201,5.2292,134.05,133.99,0.17]
[1718902221395,15.71,134.08,133.99,0.34]
[1718902221618,5.2292,134.09,134.03,7.4606]
[1718902221814,5.2292,134.09,134.02,7.4613]
[1718902222197,5.2292,134.09,133.99,0.34]
[1718902222411,5.2292,134.09,133.98,20.0]
[1718902222723,5.2292,134.09,134.02,7.4612]
[1718902223293,5.2292,134.09,134.01,7.4619]
[1718902223523,5.2292,134.09,133.99,7.4631]
[1718902223702,16.2085,134.13,134.03,7.4607]
[1718902223903,16.2085,134.13,134.04,20.0]
[1718902224109,16.2085,134.13,134.03,7.4606]
[1718902224490,16.2085,134.13,134.02,7.4613]
[1718902224904,16.2085,134.13,134.03,7.4609]
[1718902225103,16.2085,134.13,134.01,18.655]
[1718902225307,16.2085,134.13,134.02,20.51]
[1718902225503,16.2085,134.13,134.05,7.4598]
[1718902226003,16.2085,134.13,134.02,20.17]
[1718902226208,16.2085,134.13,134.02,7.4615]
[1718902226401,16.2085,134.13,134.03,7.4606]
[1718902226796,16.2085,134.13,134.05,7.4594]
[1718902227003,16.2085,134.13,134.05,7.4595]
[1718902227197,16.2085,134.13,134.04,7.4602]
[1718902227509,16.2085,134.13,133.96,61.00018231]
[1718902227510,16.2085,134.13,134.05,7.4596]
[1718902227902,16.2085,134.13,134.06,20.0]
[1718902228223,16.2085,134.13,134.06,27.459]
[1718902228412,16.2085,134.13,134.06,7.459]
[1718902228601,16.2085,134.13,134.06,7.4589]
[1718902229003,16.2085,134.13,134.05,7.4596]
[1718902229205,16.2085,134.13,134.06,7.4593]
[1718902229611,16.2085,134.13,134.07,7.4587]
[1718902229929,16.2085,134.13,134.01,18.6551]
[1718902230115,16.2085,134.13,134.02,20.17]
[1718902230307,45.0,134.12,134.03,7.4608]
[1718902230510,16.2085,134.13,134.05,7.4595]
[1718902230818,16.2085,134.13,134.08,7.4581]
[1718902231027,16.2085,134.13,134.02,20.0]
[1718902231201,16.2085,134.13,133.99,20.0]
[1718902231526,16.2085,134.13,134.05,7.4595]
[1718902231707,16.2085,134.13,134.06,7.4592]
[1718902231903,16.2085,134.13,133.98,20.0]
[1718902232211,16.2085,134.13,134.04,7.4603]
[1718902232405,16.2085,134.13,134.05,7.4597]
[1718902233728,16.2085,134.13,134.05,7.4595]
[1718902233921,16.2085,134.13,133.98,20.0]
[1718902234128,16.2085,134.13,134.06,7.459]
[1718902234440,16.2085,134.13,133.99,0.51]
[1718902234600,1.0685419,134.14,134.09,7.4573]
[1718902235098,1.0685419,134.14,134.1,7.4568]
[1718902235301,1.0685419,134.14,134.04,15.3677]
[1718902235603,1.0685419,134.14,134.1,7.4568]
[1718902235924,1.0685419,134.14,134.05,19.1594]
[1718902236130,1.0685419,134.14,134.06,20.0]
[1718902236312,1.0685419,134.14,134.05,7.6294]
[1718902236518,1.0685419,134.14,134.06,7.459]
[1718902236837,1.0685419,134.14,134.07,7.4586]
[1718902237521,1.0685419,134.14,134.06,7.459]
[1718902237917,1.0685419,134.14,134.04,18.6511]
[1718902238124,1.0685419,134.14,134.06,18.6481]
[1718902238431,1.0685419,134.14,134.1,7.4568]
[1718902239529,1.0685419,134.14,134.1,7.4569]
[1718902239729,1.0685419,134.14,134.09,7.4576]
[1718902240026,1.0685419,134.14,134.04,18.6508]
[1718902240199,1.0685419,134.14,134.07,7.4586]
[1718902240403,1.0685419,134.14,134.06,7.459]
[1718902240821,46.0685419,134.14,134.05,7.4598]
[1718902241023,1.0685419,134.14,134.05,7.4596]
[1718902241223,1.0685419,134.14,134.04,7.4601]
[1718902241427,46.0685419,134.14,134.04,7.4601]
[1718902241809,46.0685419,134.14,134.05,7.4598]
[1718902242129,5.2292,134.12,134.01,7.4617]
[1718902242329,45.0,134.11,134.01,7.4617]
[1718902243434,45.0,134.11,133.99,7.4629]
[1718902243435,15.1516,134.1,133.99,7.4629]
[1718902243640,45.0,134.09,133.95,259.3]
[1718902243817,45.0,134.09,134.02,7.4615]
[1718902244128,45.0,134.09,134.01,7.4619]
[1718902244341,15.1516,134.1,133.99,18.657]
[1718902244723,15.1516,134.1,134.01,7.4619]
[1718902244923,15.1516,134.1,133.99,7.4626]
[1718902245131,45.0,134.09,133.99,7.4626]
[1718902245623,45.0,134.09,134.0,7.4624]
[1718902246726,5.2292,134.08,133.99,7.463]
[1718902247336,5.2292,134.08,134.01,7.462]
[1718902247832,5.2292,134.08,134.02,7.4615]
[1718902248137,5.2292,134.08,134.01,7.462]
[1718902249535,5.2292,134.08,133.95,259.3]
[1718902249739,5.2292,134.08,134.03,7.4606]
[1718902251635,15.1516,134.1,134.04,7.4601]
[1718902251817,15.1516,134.1,134.05,7.4598]
[1718902252017,15.1516,134.1,134.0,15.9927]
[1718902252225,15.1516,134.1,134.08,7.458]
[1718902252418,16.2216,134.13,134.08,7.458]
[1718902252639,16.2216,134.13,134.09,7.4575]
[1718902252818,16.2216,134.13,134.1,7.457]
[1718902253017,16.2216,134.13,134.1,7.4568]
[1718902253639,16.2216,134.13,134.09,7.4572]
[1718902253845,16.2216,134.13,134.02,6.4686]
[1718902254045,16.2216,134.13,134.07,7.4583]
[1718902254548,16.2216,134.13,134.08,7.4581]
[1718902255145,16.2216,134.13,134.06,7.4593]
[1718902255833,16.2216,134.13,134.07,7.4586]
[1718902256044,16.2216,134.13,134.03,19.1614]
[1718902256045,16.2216,134.13,134.08,7.4582]
[1718902256530,16.2216,134.13,134.03,0.51]
[1718902256726,16.2216,134.13,134.06,7.4592]
[1718902257045,16.2216,134.13,134.05,7.4596]
[1718902257543,16.2216,134.13,134.05,7.4598]
[1718902257749,16.2216,134.13,134.04,7.4602]
[1718902258046,16.2216,134.13,134.05,7.4594]
[1718902258836,16.2216,134.13,134.04,7.4602]
[1718902259230,16.2216,134.13,134.04,7.4604]
[1718902259422,16.2216,134.13,134.05,7.4598]
[1718902259952,16.2216,134.13,134.04,7.4603]
[1718902260525,5.2292,134.12,134.0,259.3]
[1718902260844,45.0,134.11,133.98,6.3189]
[1718902261042,5.2292,134.12,133.99,20.0]
[1718902261553,5.2292,134.12,134.0,16.01]
[1718902261875,1.0685419,134.14,134.11,7.4565]
[1718902262236,1.0685419,134.14,134.05,6.0163]
[1718902262433,1.0685419,134.14,134.06,20.51]
[1718902262748,1.0685419,134.14,134.09,7.4575]
[1718902263262,1.0685419,134.14,134.1,7.4569]
[1718902263635,1.0685419,134.14,134.11,7.4565]
[1718902263832,1.0685419,134.14,134.13,7.4554]
[1718902264460,1.0685419,134.14,134.13,27.7954]
[1718902264642,1.0685419,134.14,134.13,27.9654]
[1718902264832,1.0685419,134.14,134.13,27.6254]
[1718902265038,1.0685419,134.14,134.13,27.4554]
[1718902265344,1.0685419,134.14,134.13,27.7954]
[1718902265546,1.0685419,134.14,134.13,27.6254]
[1718902265728,1.0685419,134.14,134.13,27.4554]
[1718902265922,1.0685419,134.14,134.11,7.4565]
[1718902266126,1.0685419,134.14,134.12,7.4556]
[1718902267047,1.0685419,134.14,134.05,30.69734022]
[1718902267354,1.0685419,134.14,134.1,7.4568]
[1718902267559,1.0685419,134.14,134.09,7.4574]
[1718902267849,1.0685419,134.14,134.08,7.458]
[1718902268035,1.0685419,134.14,134.07,7.4583]
[1718902268234,5.2292,134.13,134.07,7.4583]
[1718902268434,5.2292,134.13,134.05,7.4595]
[1718902268647,5.2292,134.13,134.06,7.459]
[1718902268833,5.2292,134.13,134.03,18.6514]
[1718902268834,5.2292,134.13,134.07,7.4587]
[1718902269852,5.2292,134.13,134.06,7.4591]
[1718902270040,5.2292,134.13,134.06,7.4592]
[1718902270651,5.2292,134.13,134.02,265.23403593]
[1718902270852,5.2292,134.13,134.04,7.4604]
[1718902271365,5.2292,134.13,134.02,7.4612]
[1718902271661,45.0,134.12,134.02,7.4612]
[1718902272051,5.2292,134.13,134.04,7.4601]
[1718902272739,45.0,134.12,134.03,7.4609]
[1718902273746,45.0,134.12,134.01,18.6541]
[1718902273747,15.3475,134.11,134.0,7.4623]
[1718902273931,45.0,134.1,133.99,7.463]
[1718902275558,5.2292,134.09,133.94,1.29899943]
[1718902275747,15.4412,134.07,133.94,20.0]
[1718902276061,25.2292,134.06,133.9,21.30046422]
[1718902276233,70.2292,134.06,133.9,1.30046422]
[1718902276434,50.2292,134.06,133.96,7.4646]
[1718902276739,50.2292,134.06,133.96,7.4647]
[1718902277257,50.2292,134.06,133.98,7.4636]
[1718902277437,5.2292,134.06,133.9,34.02046422]
[1718902277636,5.2292,134.06,133.98,7.4635]
[1718902277963,5.2292,134.06,133.97,7.4641]
[1718902278549,5.2292,134.06,133.96,7.4646]
[1718902278741,45.0,134.05,133.96,7.4648]
[1718902279052,5.2292,134.06,133.99,7.463]
[1718902279459,5.2292,134.06,133.98,7.4636]
[1718902279754,5.2292,134.06,133.97,7.464]
[1718902280263,45.0,134.05,133.96,7.4648]
[1718902280666,45.0,134.05,133.97,7.4643]
[1718902281664,45.0,134.05,133.96,7.4646]
[1718902281873,45.0,134.05,133.95,7.465]
[1718902282171,45.0,134.05,133.95,7.4653]
[1718902283274,45.0,134.05,133.91,38.6689]